bitfinex-derivatives/quotes_BTCF0:USTF0_20241227
["timestamp","ask_amount","ask_price","bid_price","bid_amount"]
[1735266314450,0.05497,96360.0,96359.0,0.19358965]
[1735266314752,0.05497,96360.0,96359.0,0.50201028]
[1735266314753,0.05597,96360.0,96359.0,0.50201028]
[1735266315745,0.05597,96360.0,96359.0,0.30842063]
[1735266316843,0.05597,96360.0,96358.0,0.31930255]
[1735266317145,0.05597,96360.0,96358.0,0.30842063]
[1735266318441,0.05597,96360.0,96350.0,0.31914682]
[1735266318643,0.051974,96351.0,96350.0,0.30842063]
[1735266319953,0.051976,96348.0,96347.0,0.30842063]
[1735266321245,0.051976,96348.0,96347.0,0.31142063]
[1735266321447,0.051976,96348.0,96347.0,0.005]
[1735266323453,0.051973,96355.0,96347.0,0.005]
[1735266323950,0.051973,96355.0,96345.0,0.07547131]
[1735266324152,0.051974,96353.0,96347.0,0.005]
[1735266324454,0.051975,96351.0,96348.0,0.19382735]
[1735266324653,0.214,96367.0,96348.0,0.19382735]
[1735266324654,0.051975,96350.0,96348.0,0.19382735]
[1735266325747,0.051975,96350.0,96347.0,0.37438543]
[1735266325748,0.214,96367.0,96347.0,0.005]
[1735266325948,0.051976,96348.0,96347.0,0.005]
[1735266327149,0.051976,96348.0,96347.0,0.19713561]
[1735266327551,0.051976,96348.0,96347.0,0.19413561]
[1735266327949,0.051976,96348.0,96347.0,0.19513561]
[1735266328649,0.051976,96348.0,96347.0,0.19713561]
[1735266329657,0.214,96367.0,96347.0,0.19713561]
[1735266329853,0.051973,96354.0,96347.0,0.19713561]
[1735266330155,0.051976,96349.0,96347.0,0.19713561]
[1735266330353,0.051976,96349.0,96347.0,0.19613561]
[1735266330546,0.051976,96349.0,96347.0,0.19713561]
[1735266330957,0.051976,96349.0,96347.0,0.19513561]
[1735266331258,0.051967,96365.0,96347.0,0.19713561]
[1735266331453,0.05197,96359.0,96348.0,0.19413561]
[1735266331853,0.051971,96358.0,96348.0,0.19413561]
[1735266332963,0.051971,96358.0,96347.0,0.004]
[1735266332964,0.051971,96357.0,96355.0,0.36938543]
[1735266333949,0.214,96367.0,96347.0,0.002]
[1735266334250,0.051976,96349.0,96348.0,0.002]
[1735266334455,0.051976,96349.0,96348.0,0.003]
[1735266334655,0.051976,96349.0,96348.0,0.001]
[1735266335056,0.051976,96349.0,96342.0,0.28055812]
[1735266335265,0.051976,96349.0,96348.0,0.19890609]
[1735266336565,0.051976,96349.0,96348.0,0.57038807]
[1735266337457,0.051976,96349.0,96348.0,0.57338807]
[1735266338058,0.051976,96349.0,96348.0,0.20190609]
[1735266341466,0.214,96367.0,96348.0,0.20190609]
[1735266341667,0.051972,96356.0,96350.0,0.07547131]
[1735266341966,0.09335193,96371.0,96350.0,0.07547131]
[1735266342171,0.051967,96365.0,96360.0,0.07547131]
[1735266342468,0.051967,96365.0,96361.0,0.6525]
[1735266343565,0.051968,96363.0,96361.0,0.6525]
[1735266343957,0.051968,96363.0,96362.0,0.57028425]
[1735266345264,0.056968,96363.0,96362.0,0.19890609]
[1735266345673,0.053968,96363.0,96362.0,0.19890609]
[1735266345870,0.057968,96363.0,96362.0,0.19890609]
[1735266349869,0.057968,96363.0,96350.0,0.0105778]
[1735266349870,0.006,96363.0,96359.0,0.3093622]
[1735266350069,0.05197,96360.0,96359.0,0.3093622]
[1735266351478,0.05497,96360.0,96359.0,0.3093622]
[1735266351775,0.05497,96360.0,96358.0,0.3093622]
[1735266352782,0.05597,96360.0,96358.0,0.3093622]
[1735266353079,0.051972,96355.0,96354.0,0.3093622]
[1735266355184,0.051972,96355.0,96354.0,0.50836818]
[1735266355368,0.051972,96355.0,96354.0,0.19900598]
[1735266359571,0.052972,96355.0,96354.0,0.19900598]
[1735266360579,0.053972,96355.0,96354.0,0.19900598]
[1735266361088,0.052972,96355.0,96354.0,0.19900598]
[1735266361391,0.054972,96355.0,96354.0,0.19900598]
[1735266361980,0.054972,96355.0,96354.0,0.50854591]
[1735266363102,0.054972,96355.0,96354.0,0.61126096]
[1735266363693,0.055972,96355.0,96354.0,0.61126096]
[1735266364295,0.052972,96355.0,96354.0,0.61126096]
[1735266364598,0.052972,96355.0,96354.0,0.47848964]
[1735266365195,0.051972,96355.0,96354.0,0.47848964]
[1735266365902,0.051971,96359.0,96354.0,0.47848964]
[1735266366096,0.051971,96359.0,96355.0,0.22]
[1735266366291,0.01084354,96385.0,96356.0,0.04128129]
[1735266366490,0.051965,96369.0,96360.0,0.07547131]
[1735266366700,0.051965,96369.0,96361.0,0.07059192]
[1735266366898,0.051965,96369.0,96361.0,0.04128129]
[1735266367098,0.051965,96369.0,96362.0,0.04128129]
[1735266367401,0.051966,96368.0,96362.0,0.04128129]
[1735266367702,0.051966,96368.0,96363.0,0.04128129]
[1735266367995,0.051966,96368.0,96364.0,0.04128129]
[1735266368200,0.051966,96368.0,96365.0,0.04128129]
[1735266368601,0.051966,96368.0,96366.0,0.04128129]
[1735266368796,0.053966,96368.0,96367.0,0.04128129]
[1735266369996,0.002,96368.0,96367.0,0.04128129]
[1735266370202,0.051961,96376.0,96367.0,0.04128129]
[1735266370394,0.051961,96376.0,96368.0,0.2342]
[1735266370594,0.051961,96376.0,96369.0,0.04128129]
[1735266370795,0.051961,96376.0,96370.0,0.04128129]
[1735266371096,0.06270233,96393.0,96368.0,0.2342]
[1735266371097,0.051963,96373.0,96371.0,0.2243]
[1735266372405,0.051963,96373.0,96372.0,0.19900598]
[1735266372703,0.054963,96373.0,96372.0,0.19900598]
[1735266374103,0.060963,96373.0,96372.0,0.19900598]
[1735266374299,0.057963,96373.0,96372.0,0.19900598]
[1735266374607,0.060963,96373.0,96372.0,0.19900598]
[1735266374798,0.060963,96373.0,96372.0,0.20000598]
[1735266378808,0.709843,96373.0,96348.0,6e-08]
[1735266379005,0.709843,96373.0,96340.0,0.76884228]
[1735266379006,0.051976,96349.0,96340.0,0.76884228]
[1735266379204,0.05198,96341.0,96340.0,0.76884228]
[1735266380513,0.051996,96311.0,96310.0,0.00155708]
[1735266380716,0.051996,96311.0,96310.0,0.01192447]
[1735266380914,0.051996,96311.0,96310.0,0.00155708]
[1735266381604,0.05209464,96311.0,96310.0,0.00155708]
[1735266381913,0.05309464,96311.0,96310.0,0.00755708]
[1735266382308,0.05409464,96311.0,96310.0,0.01655708]
[1735266383812,0.00209864,96311.0,96310.0,0.01655708]
[1735266384209,0.00109864,96311.0,96310.0,0.01055708]
[1735266384403,0.00109864,96311.0,96310.0,0.01455708]
[1735266384608,0.00109864,96311.0,96310.0,0.01355708]
[1735266385015,0.00109864,96311.0,96310.0,0.00955708]
[1735266385205,9.864e-05,96311.0,96310.0,0.00555708]
[1735266385516,9.864e-05,96311.0,96310.0,0.00955708]
[1735266385517,0.00109864,96311.0,96310.0,0.00955708]
[1735266385918,0.00109864,96311.0,96310.0,0.00855708]
[1735266387409,0.00109864,96311.0,96310.0,0.00455708]
[1735266387712,0.00109864,96311.0,96310.0,0.00955708]
[1735266387912,0.00109864,96311.0,96310.0,0.01055708]
[1735266388709,0.00109864,96311.0,96310.0,0.00955708]
[1735266389416,0.00109864,96311.0,96310.0,0.01255708]
[1735266390902,0.00109864,96311.0,96310.0,0.00855708]
[1735266391105,0.00109864,96311.0,96310.0,0.01155708]
[1735266391720,0.00109864,96311.0,96310.0,0.00655708]
[1735266391918,0.00109864,96311.0,96310.0,0.01055708]
[1735266392718,0.00109864,96311.0,96310.0,0.00955708]
[1735266394319,0.00209864,96311.0,96310.0,0.01155708]
[1735266395515,0.00209864,96311.0,96310.0,0.01555708]
[1735266395721,0.00209864,96311.0,96310.0,0.014]
[1735266397126,0.00109864,96311.0,96310.0,0.009]
[1735266397326,0.00209864,96311.0,96310.0,0.014]
[1735266397822,0.00209864,96311.0,96310.0,0.009]
[1735266398023,0.00209864,96311.0,96310.0,0.014]
[1735266399627,0.00109864,96311.0,96310.0,0.005]
[1735266399924,0.00209864,96311.0,96310.0,0.014]
[1735266401923,0.00109864,96311.0,96310.0,0.005]
[1735266402119,0.00209864,96311.0,96310.0,0.014]
[1735266403223,0.00109864,96311.0,96310.0,0.005]
[1735266403527,0.00109864,96311.0,96310.0,0.009]
[1735266403725,0.00209864,96311.0,96310.0,0.014]
[1735266404524,0.00209864,96311.0,96310.0,0.009]
[1735266404725,0.00109864,96311.0,96310.0,0.013]
[1735266405629,9.864e-05,96311.0,96310.0,0.004]
[1735266405825,0.00109864,96311.0,96310.0,0.013]
[1735266406728,0.00209864,96311.0,96310.0,0.014]
[1735266410229,0.00109864,96311.0,96310.0,0.009]
[1735266410529,0.00109864,96311.0,96310.0,0.013]
[1735266411031,0.00209864,96311.0,96310.0,0.014]
[1735266414427,0.00109864,96311.0,96310.0,0.05023576]
[1735266414730,0.00209864,96311.0,96310.0,0.05523576]
[1735266416032,0.00209864,96311.0,96310.0,0.05423576]
[1735266416534,0.00109864,96311.0,96310.0,0.04523576]
[1735266416722,0.00109864,96311.0,96310.0,0.05023576]
[1735266416927,0.00109864,96311.0,96310.0,0.05423576]
[1735266416928,0.00209864,96311.0,96310.0,0.05423576]
[1735266417732,0.00209864,96311.0,96310.0,0.2554448]
[1735266423735,0.00109864,96311.0,96310.0,0.2564448]
[1735266423939,0.00209864,96311.0,96310.0,0.2564448]
[1735266424342,0.00309864,96311.0,96310.0,0.2654448]
[1735266425246,0.00209864,96311.0,96310.0,0.2604448]
[1735266425440,0.00309864,96311.0,96310.0,0.2654448]
[1735266426335,0.00109864,96311.0,96310.0,0.2474448]
[1735266426737,9.864e-05,96311.0,96310.0,0.2464448]
[1735266426931,9.864e-05,96311.0,96310.0,0.47224803]
[1735266427544,0.00109864,96311.0,96310.0,0.48024803]
[1735266429642,0.00109864,96311.0,96310.0,0.47624803]
[1735266429838,0.00109864,96311.0,96310.0,0.48024803]
[1735266430432,9.864e-05,96311.0,96310.0,0.47224803]
[1735266430638,0.00109864,96311.0,96310.0,0.47924803]
[1735266432843,0.00109864,96311.0,96310.0,0.47524803]
[1735266433045,0.00109864,96311.0,96310.0,0.47924803]
[1735266434248,0.00109864,96311.0,96310.0,0.2534448]
[1735266434645,0.00109864,96311.0,96310.0,0.2494448]
[1735266434948,0.00109864,96311.0,96310.0,0.2534448]
[1735266440355,0.00109864,96311.0,96310.0,0.49572817]
[1735266444049,9.864e-05,96311.0,96310.0,0.48872817]
[1735266444250,0.00109864,96311.0,96310.0,0.49572817]
[1735266444953,0.00109864,96311.0,96310.0,0.45449241]
[1735266445859,9.864e-05,96311.0,96310.0,0.20420904]
[1735266446159,0.00109864,96311.0,96310.0,0.21020904]
[1735266446459,0.00109864,96311.0,96310.0,0.25150115]
[1735266448154,0.00109864,96311.0,96310.0,0.24850115]
[1735266448356,0.00109864,96311.0,96310.0,0.25150115]
[1735266449058,0.00109864,96311.0,96310.0,0.20920904]
[1735266449560,9.864e-05,96311.0,96310.0,0.20420904]
[1735266449753,0.00109864,96311.0,96310.0,0.20920904]
[1735266449954,0.051987,96328.0,96310.0,0.25051422]
[1735266450260,0.051987,96328.0,96311.0,0.04130518]
[1735266450658,0.051987,96328.0,96312.0,0.04130518]
[1735266450861,0.051987,96328.0,96310.0,0.25867164]
[1735266450862,0.051987,96328.0,96313.0,0.25270518]
[1735266451359,0.051987,96328.0,96326.0,0.37255495]
[1735266452254,0.052987,96328.0,96326.0,0.37255495]
[1735266452660,0.052987,96328.0,96315.0,0.04124521]
[1735266452855,0.053987,96328.0,96313.0,0.2114]
[1735266453051,0.053987,96328.0,96314.0,0.04123612]
[1735266453455,0.051987,96328.0,96313.0,0.2114]
[1735266453755,0.053987,96328.0,96313.0,0.2114]
[1735266453956,0.051989,96325.0,96313.0,0.2114]
[1735266454160,0.051989,96325.0,96314.0,0.041251]
[1735266454349,0.051989,96325.0,96315.0,0.21379182]
[1735266454955,0.051989,96325.0,96316.0,0.04125356]
[1735266455365,0.051989,96325.0,96315.0,0.21379182]
[1735266455551,0.051989,96324.0,96315.0,0.21579182]
[1735266455754,0.0494626,96330.0,96316.0,0.25504201]
[1735266455755,0.05199,96323.0,96316.0,0.25504201]
[1735266456258,0.05199,96323.0,96316.0,0.21379182]
[1735266456859,0.05199,96323.0,96317.0,0.21379182]
[1735266457763,0.05199,96323.0,96318.0,0.21379182]
[1735266458153,0.0494626,96330.0,96318.0,0.21379182]
[1735266458354,0.051986,96329.0,96318.0,0.21379182]
[1735266458558,0.051991,96320.0,96318.0,0.21379182]
[1735266458759,0.051991,96320.0,96319.0,0.21379182]
[1735266459260,0.051991,96320.0,96319.0,0.25510129]
[1735266461767,0.051991,96320.0,96319.0,0.25610129]
[1735266466668,0.051991,96320.0,96319.0,0.21479182]
[1735266478578,0.051991,96320.0,96319.0,0.21579182]
[1735266479079,0.051991,96320.0,96319.0,0.21479182]
[1735266479285,0.051991,96320.0,96319.0,0.21579182]
[1735266479881,0.051991,96320.0,96319.0,0.25712894]
[1735266480275,0.051991,96320.0,96319.0,0.51204553]
[1735266481581,0.051991,96320.0,96319.0,0.25712894]
[1735266483985,0.051991,96320.0,96319.0,0.25612894]
[1735266484177,0.051991,96320.0,96319.0,0.25712894]
[1735266485476,0.051991,96320.0,96319.0,0.51190176]
[1735266490481,0.051991,96320.0,96319.0,0.50990176]
[1735266490986,0.0494626,96330.0,96319.0,0.50990176]
[1735266491390,0.0494626,96330.0,96320.0,0.04133712]
[1735266491780,0.0494626,96330.0,96321.0,0.04133712]
[1735266492185,0.0494626,96330.0,96322.0,0.04133712]
[1735266492485,0.0494626,96330.0,96323.0,0.04133712]
[1735266492798,0.0494626,96330.0,96324.0,0.04133712]
[1735266493185,0.0494626,96330.0,96325.0,0.04133712]
[1735266493385,0.19227713,96340.0,96325.0,0.04133712]
[1735266493587,0.19227713,96340.0,96324.0,0.21379182]
[1735266493788,0.0494626,96332.0,96324.0,0.21379182]
[1735266494593,0.0494626,96332.0,96325.0,0.21379182]
[1735266495694,0.0494626,96332.0,96326.0,0.21379182]
[1735266496096,0.0504626,96332.0,96326.0,0.21379182]
[1735266496394,0.001,96332.0,96326.0,0.21379182]
[1735266497098,0.001,96332.0,96327.0,0.21379182]
[1735266497486,0.003,96332.0,96327.0,0.21379182]
[1735266498089,0.004,96332.0,96328.0,0.21379182]
[1735266498686,0.001,96332.0,96328.0,0.21379182]
[1735266498996,0.004,96332.0,96328.0,0.21379182]
[1735266499296,0.001,96332.0,96328.0,0.21379182]
[1735266499498,0.004,96332.0,96329.0,0.21379182]
[1735266499891,0.003,96332.0,96329.0,0.21379182]
[1735266500091,0.01326971,96332.0,96329.0,0.21379182]
[1735266500287,0.004,96332.0,96329.0,0.21379182]
[1735266500693,0.004,96332.0,96330.0,0.37306369]
[1735266500893,0.55,96331.0,96330.0,0.37306369]
[1735266501200,0.004,96332.0,96330.0,0.37306369]
[1735266501710,0.55,96331.0,96330.0,0.37306369]
[1735266502092,0.55,96331.0,96322.0,0.37306369]
[1735266502390,0.554,96331.0,96322.0,0.37306369]
[1735266503002,0.556,96331.0,96322.0,0.37306369]
[1735266503202,0.051989,96323.0,96320.0,0.58766369]
[1735266503401,0.05199,96321.0,96320.0,0.58766369]
[1735266504589,0.05199,96321.0,96320.0,0.2146]
[1735266506698,0.05199,96321.0,96320.0,0.4393204]
[1735266507897,0.05199,96321.0,96320.0,0.2146]
[1735266510707,0.0494626,96330.0,96306.0,0.43532616]
[1735266510708,0.051998,96307.0,96306.0,0.43532616]
[1735266511004,0.051998,96307.0,96306.0,0.29893016]
[1735266511211,0.601998,96307.0,96306.0,0.02781366]
[1735266511508,0.601998,96307.0,96299.0,0.15699598]
[1735266511710,0.052002,96300.0,96299.0,0.15699598]
[1735266512206,0.352002,96300.0,96299.0,0.15699598]
[1735266512409,0.902002,96300.0,96299.0,0.15699598]
[1735266512610,0.602002,96300.0,96299.0,0.16099598]
[1735266513306,0.052005,96294.0,96293.0,0.00052]
[1735266513512,0.052007,96291.0,96290.0,0.00011233]
[1735266515207,0.052007,96291.0,96290.0,0.00111233]
[1735266515806,0.052007,96291.0,96290.0,0.00011233]
[1735266516004,0.053007,96291.0,96290.0,0.00211233]
[1735266517903,0.055007,96291.0,96290.0,0.00011233]
[1735266520123,0.00948325,96332.0,96302.0,0.0369]
[1735266520421,0.051968,96362.0,96311.0,0.0989252]
[1735266520725,0.051968,96362.0,96300.0,0.0494626]
[1735266520726,0.0494626,96360.0,96322.0,0.0494626]
[1735266521020,0.05198,96341.0,96330.0,0.0494626]
[1735266522019,0.01074521,96353.0,96312.0,0.37273155]
[1735266522020,0.0494626,96340.0,96312.0,0.37273155]
[1735266522222,0.07536785,96340.0,96322.0,0.003]
[1735266522415,0.051987,96327.0,96322.0,0.003]
[1735266523414,0.051987,96327.0,96323.0,0.2122]
[1735266523818,0.051987,96327.0,96323.0,0.4144]
[1735266524019,0.051987,96327.0,96324.0,0.2136]
[1735266524234,0.07536785,96340.0,96324.0,0.49277896]
[1735266524426,0.051986,96329.0,96324.0,0.49277896]
[1735266524924,0.051986,96329.0,96325.0,0.61189187]
[1735266525119,0.001,96327.0,96325.0,0.61189187]
[1735266526115,0.052986,96329.0,96326.0,0.27917896]
[1735266526311,0.053986,96329.0,96326.0,0.27917896]
[1735266526818,0.002,96329.0,96326.0,0.27917896]
[1735266527722,0.001,96329.0,96327.0,0.60917033]
[1735266527928,0.051976,96349.0,96327.0,0.60917033]
[1735266528229,0.051977,96347.0,96330.0,0.07536785]
[1735266529226,0.051977,96347.0,96345.0,0.30842974]
[1735266529429,0.053977,96347.0,96345.0,0.30842974]
[1735266530422,0.053977,96347.0,96330.0,0.07536785]
[1735266530423,0.053977,96347.0,96344.0,0.30842974]
[1735266530921,0.056977,96347.0,96345.0,0.001]
[1735266531323,0.060977,96347.0,96345.0,0.001]
[1735266531738,0.059977,96347.0,96344.0,0.30842974]
[1735266532031,0.008,96347.0,96345.0,0.28686522]
[1735266532331,0.051977,96346.0,96345.0,0.28686522]
[1735266532629,0.051977,96346.0,96345.0,0.28786522]
[1735266533129,0.051977,96346.0,96345.0,0.001]
[1735266533635,0.06044671,96359.0,96345.0,0.001]
[1735266533822,0.051977,96346.0,96345.0,0.001]
[1735266534629,0.064977,96346.0,96345.0,0.001]
[1735266535428,0.07536785,96380.0,96345.0,0.001]
[1735266535724,0.07536785,96380.0,96350.0,0.07536785]
[1735266535725,0.051968,96363.0,96350.0,0.07536785]
[1735266537225,0.051964,96371.0,96350.0,0.07536785]
[1735266537528,0.051964,96371.0,96360.0,0.07536785]
[1735266537834,0.003,96380.0,96360.0,0.07536785]
[1735266538628,0.051966,96367.0,96362.0,0.3690093]
[1735266539129,0.051961,96375.0,96362.0,0.3690093]
[1735266539836,0.051961,96375.0,96366.0,0.30738211]
[1735266540029,0.051961,96375.0,96367.0,0.2097]
[1735266541430,0.051961,96375.0,96368.0,0.27672384]
[1735266541431,0.052961,96375.0,96368.0,0.27672384]
[1735266542728,0.052961,96375.0,96374.0,0.30701814]
[1735266543435,0.051961,96375.0,96374.0,0.30701814]
[1735266543636,0.052961,96375.0,96374.0,0.30701814]
[1735266544136,0.052961,96375.0,96374.0,0.27672384]
[1735266544335,0.053961,96375.0,96374.0,0.27672384]
[1735266545330,0.07309198,96389.0,96374.0,0.27672384]
[1735266545534,0.051959,96380.0,96379.0,0.07536785]
[1735266545836,0.051961,96376.0,96374.0,0.27672384]
[1735266546029,0.051961,96376.0,96374.0,0.3072286]
[1735266546625,0.051961,96376.0,96374.0,0.3102286]
[1735266547433,0.002,96376.0,96374.0,0.3072286]
[1735266547738,0.053961,96376.0,96374.0,0.3072286]
[1735266548039,0.053961,96376.0,96375.0,0.26634264]
[1735266549236,0.051957,96383.0,96375.0,0.26634264]
[1735266549434,0.051957,96383.0,96376.0,0.2086]
[1735266550135,0.2172,96392.0,96376.0,0.2086]
[1735266550328,0.05195,96397.0,96382.0,0.1507357]
[1735266550738,0.05195,96397.0,96382.0,0.07536785]
[1735266551143,0.05195,96397.0,96388.0,0.3079063]
[1735266552336,0.1,96400.0,96391.0,0.051953]
[1735266552642,0.07536785,96440.0,96396.0,0.05195]
[1735266552834,0.051938,96419.0,96400.0,0.07536785]
[1735266553032,0.051938,96419.0,96409.0,0.07536785]
[1735266554245,0.051934,96426.0,96409.0,0.07836785]
[1735266554441,0.051928,96437.0,96419.0,0.07536785]
[1735266554736,0.0534856,96436.0,96425.0,0.07536785]
[1735266554937,0.0534856,96436.0,96426.0,0.2011]
[1735266556035,0.0015566,96436.0,96426.0,0.2011]
[1735266556234,0.051934,96427.0,96425.0,0.07536785]
[1735266556433,0.051934,96427.0,96419.0,0.003]
[1735266556740,0.051934,96427.0,96426.0,0.3700093]
[1735266557338,0.051934,96427.0,96426.0,0.3690093]
[1735266557739,0.051934,96427.0,96426.0,0.30691754]
[1735266557938,0.0015566,96436.0,96426.0,0.30691754]
[1735266558138,0.0015566,96436.0,96426.0,0.38228539]
[1735266558341,0.051932,96429.0,96426.0,0.38228539]
[1735266558534,0.051932,96429.0,96425.0,0.001]
[1735266558845,0.051932,96429.0,96426.0,0.001]
[1735266559544,0.051932,96429.0,96425.0,0.001]
[1735266559743,0.051933,96427.0,96425.0,0.001]
[1735266560343,0.051933,96427.0,96426.0,0.001]
[1735266560649,0.0534856,96436.0,96426.0,0.001]
[1735266561450,0.05193,96435.0,96426.0,0.001]
[1735266561852,0.05193,96435.0,96425.0,0.001]
[1735266562539,0.05193,96435.0,96430.0,0.24554923]
[1735266562943,0.00063915,96436.0,96430.0,0.24554923]
[1735266564452,0.00063915,96436.0,96431.0,0.30691754]
[1735266566053,0.06944789,96449.0,96433.0,0.30691754]
[1735266566252,0.07536785,96443.0,96433.0,0.30691754]
[1735266566445,0.2124,96442.0,96433.0,0.30691754]
[1735266566759,0.051929,96435.0,96433.0,0.30691754]
[1735266567054,0.051929,96435.0,96432.0,0.25891801]
[1735266567646,0.05193,96434.0,96432.0,0.25891801]
[1735266568148,0.05193,96434.0,96433.0,0.005]
[1735266568754,0.051931,96431.0,96430.0,0.01165999]
[1735266568949,0.051933,96428.0,96427.0,0.30724426]
[1735266571050,0.051933,96428.0,96427.0,0.01154135]
[1735266571257,0.051933,96428.0,96427.0,0.001]
[1735266576362,0.051933,96428.0,96427.0,0.25301342]
[1735266577855,0.07536785,96440.0,96427.0,0.25301342]
[1735266579054,0.051933,96428.0,96427.0,0.25301342]
[1735266579962,0.051933,96428.0,96427.0,0.001]
[1735266580957,0.09027089,96440.0,96427.0,0.001]
[1735266581162,0.051933,96428.0,96427.0,0.001]
[1735266581956,0.051933,96428.0,96427.0,0.55075574]
[1735266582157,0.051933,96428.0,96427.0,0.54975574]
[1735266582365,0.051933,96428.0,96427.0,0.55075574]
[1735266583763,0.051933,96428.0,96427.0,0.54975574]
[1735266583965,0.051933,96428.0,96427.0,0.55075574]
[1735266585656,0.051933,96428.0,96427.0,0.89862821]
[1735266587663,0.051933,96428.0,96427.0,0.93999998]
[1735266593869,0.051933,96428.0,96427.0,1.33613872]
[1735266594067,0.2124,96442.0,96427.0,1.33613872]
[1735266594264,0.051932,96428.0,96427.0,1.33613872]
[1735266594567,0.2124,96442.0,96427.0,1.33611934]
[1735266594568,0.051928,96436.0,96427.0,1.33611934]
[1735266594774,0.051929,96435.0,96427.0,1.33611934]
[1735266595071,0.051929,96435.0,96428.0,0.04135239]
[1735266595370,0.051929,96435.0,96434.0,0.4925139]
[1735266595870,0.051929,96435.0,96434.0,0.53386629]
[1735266596663,0.051929,96435.0,96434.0,1.47976077]
[1735266596865,0.051929,96435.0,96434.0,1.82763324]
[1735266597561,0.2157,96450.0,96434.0,1.82763324]
[1735266597762,0.051926,96439.0,96434.0,1.82763324]
[1735266598269,0.051926,96439.0,96435.0,0.04135239]
[1735266598471,0.051926,96439.0,96436.0,0.04135239]
[1735266598665,0.2157,96450.0,96437.0,0.04135239]
[1735266598869,0.051927,96438.0,96437.0,0.04135239]
[1735266599164,0.051927,96438.0,96435.0,1.29436695]
[1735266599365,0.051927,96438.0,96437.0,0.04142221]
[1735266599567,0.051927,96438.0,96436.0,0.04142221]
[1735266599871,0.051927,96438.0,96437.0,1.33518916]
[1735266600863,0.052927,96438.0,96437.0,1.33518916]
[1735266601462,0.052927,96438.0,96437.0,0.93905042]
[1735266602777,0.052927,96438.0,96437.0,0.89762821]
[1735266604870,0.052927,96438.0,96437.0,0.93894776]
[1735266606768,0.001,96438.0,96437.0,0.93894776]
[1735266607558,0.052927,96438.0,96437.0,0.70086821]
[1735266607866,0.051931,96430.0,96429.0,0.55401308]
[1735266608763,0.051933,96427.0,96426.0,0.00052]
[1735266608959,0.051933,96427.0,96418.0,0.43338096]
[1735266608960,0.051937,96419.0,96418.0,0.43338096]
[1735266610271,0.051937,96419.0,96418.0,0.003]
[1735266611678,0.051937,96419.0,96418.0,0.006]
[1735266611982,0.051937,96419.0,96418.0,0.2105]
[1735266612878,0.051937,96419.0,96418.0,0.25184945]
[1735266614368,0.051929,96433.0,96418.0,0.25184945]
[1735266614570,0.051929,96433.0,96420.0,0.07536785]
[1735266614774,0.051929,96433.0,96420.0,0.12730385]
[1735266614973,0.051929,96433.0,96421.0,0.04134945]
[1735266615375,0.05193,96432.0,96422.0,0.04134945]
[1735266615576,0.05193,96432.0,96423.0,0.04134945]
[1735266615776,0.051934,96425.0,96423.0,0.04134945]
[1735266616079,0.051934,96425.0,96424.0,0.04134945]
[1735266616478,0.05193,96432.0,96424.0,0.04134945]
[1735266616876,0.05193,96432.0,96425.0,0.04134945]
[1735266617077,0.051931,96431.0,96425.0,0.04134945]
[1735266617278,0.051933,96427.0,96426.0,0.04134945]
[1735266618274,0.051933,96427.0,96426.0,0.26409293]
[1735266618886,0.051933,96427.0,96426.0,0.22274348]
[1735266619278,0.051933,96427.0,96426.0,0.22374348]
[1735266621077,0.051933,96427.0,96426.0,0.26514141]
[1735266621272,0.051933,96427.0,96426.0,0.27910508]
[1735266621982,0.051933,96427.0,96426.0,0.23770715]
[1735266622483,0.051933,96427.0,96426.0,0.01496367]
[1735266622679,0.051933,96427.0,96426.0,0.0563578]
[1735266622882,0.051933,96427.0,96426.0,0.01496367]
[1735266625478,0.051933,96427.0,96426.0,0.2388886]
[1735266626782,0.051933,96427.0,96426.0,0.01496367]
[1735266626981,0.051933,96427.0,96415.0,0.43338096]
[1735266627184,0.1507357,96425.0,96410.0,0.49535428]
[1735266627385,0.051944,96406.0,96405.0,0.55453308]
[1735266627584,0.051944,96406.0,96405.0,0.55401308]
[1735266628385,0.1014,96410.0,96387.0,0.01368169]
[1735266628386,0.051948,96398.0,96387.0,0.01368169]
[1735266629782,0.051948,96398.0,96397.0,0.00455573]
[1735266631172,0.051948,96398.0,96397.0,0.00255573]
[1735266631487,0.051948,96398.0,96397.0,0.00555573]
[1735266631880,0.051948,96398.0,96397.0,0.00155573]
[1735266632081,0.051948,96398.0,96397.0,0.00355573]
[1735266632582,0.051948,96398.0,96397.0,0.003]
[1735266632791,0.051948,96398.0,96397.0,0.004]
[1735266633285,0.07536785,96407.0,96397.0,0.0176695]
[1735266633486,0.051929,96434.0,96397.0,0.12599957]
[1735266633683,0.051938,96417.0,96397.0,0.17794857]
[1735266633885,0.07536785,96420.0,96397.0,0.12599957]
[1735266634083,0.051939,96415.0,96401.0,0.051946]
[1735266634280,0.051939,96415.0,96402.0,0.41]
[1735266635780,0.051939,96415.0,96402.0,0.415]
[1735266635981,0.051939,96415.0,96403.0,0.04093296]
[1735266636284,0.051939,96415.0,96404.0,0.04093296]
[1735266636483,0.051939,96415.0,96405.0,0.198]
[1735266636807,0.051944,96406.0,96405.0,0.04093296]
[1735266637093,0.051946,96403.0,96402.0,0.008]
[1735266637387,0.051946,96403.0,96402.0,0.005]
[1735266637688,0.051946,96403.0,96402.0,0.01]
[1735266638176,0.07536785,96412.0,96403.0,0.008]
[1735266638375,0.051945,96404.0,96403.0,0.008]
[1735266638783,0.051945,96404.0,96402.0,0.008]
[1735266638987,0.051945,96404.0,96402.0,0.011]
[1735266639288,0.051945,96404.0,96402.0,0.003]
[1735266639484,0.051945,96404.0,96403.0,0.001]
[1735266641183,0.051945,96404.0,96402.0,0.002]
[1735266641392,0.051945,96404.0,96402.0,0.004]
[1735266641791,0.051945,96404.0,96403.0,0.002]
[1735266642092,0.051945,96404.0,96403.0,0.003]
[1735266642493,0.051949,96398.0,96391.0,0.3938]
[1735266642685,0.05195,96396.0,96391.0,0.3938]
[1735266642885,0.05195,96396.0,96392.0,0.1971]
[1735266644683,0.051951,96393.0,96392.0,0.1971]
[1735266645091,0.051951,96393.0,96392.0,0.2031]
[1735266645492,0.051951,96393.0,96392.0,0.2071]
[1735266646285,0.051951,96393.0,96392.0,0.2131]